Cogmind - Beta 13 @@@ ROGUE MODE // 2024.04.08 @ 20:27:57 Player: gabr Result: Destroyed by L-41 Fighter with Axe Performance ------------- Evolutions (3) 1500 Regions Visited (7) 1400 Robots Destroyed (39) 195 Value Destroyed (996) 996 Prototype IDs (0) 0 Alien Tech Used (0) 0 Bonus (272) 272 TOTAL SCORE: 4363 Bonus ------- Pacifist 200 Follower Combat Kills 72 Cogmind --------- Core Integrity 0/700 Matter 102/300 Energy 100/100 System Corruption 4% Temperature Cool (18) Movement Core (50) Location -7/Factory Parts ------- > --- POWER (1) -------- (None) > --- PROPULSION (6) --- (None) > --- UTILITY (4) ------ (None) > --- WEAPON (2) ------- (None) > --- INVENTORY (5) ---- (None) Peak State ------------ > --- POWER ------------ Light Nuclear Core > --- PROPULSION ------- Aluminum Leg VSS Leg VSS Leg Xenon Bombardment Thruster > --- UTILITY ---------- Improved Cooling System Large Storage Unit Visual Processing Unit Improved Light Armor Plating > --- WEAPON ----------- Flak Gun Improved Light Cannon > --- INVENTORY -------- Improved Ion Engine Light Angular Momentum Engine Improved Heat Sink Improved Heat Sink Heavy Armor Plating Heavy Particle Cannon Heavy Particle Cannon Heavy Particle Cannon Heavy Particle Cannon Heavy Particle Cannon Improved Light Cannon [Rating: 33] Favorites ----------- Power Light Nuclear Core Engine Improved Ion Engine Power Core Light Nuclear Core Propulsion Armored Wheel Leg Aluminum Leg Wheel Armored Wheel Flight Unit Xenon Bombardment Thruster Utility Large Storage Unit Device Improved Cooling System Storage Large Storage Unit Processor Visual Processing Unit Protection Medium Armor Plating Weapon Heavy Assault Rifle Energy Gun Beam Rifle Energy Cannon Heavy Particle Cannon Ballistic Gun Heavy Assault Rifle Ballistic Cannon Improved Light Cannon Launcher Rocket Launcher Build | -11 -10 -9 -9 -8 -7 -7 -7 ------- Run | Yrd Mat Mat Min Mat Fac Was Fac Slots Evolved 6 | . . 2 . 2 2 . . Power . | . . . . . . . . Propulsion 4 | . . 2 . . 2 . . Utility 2 | . . . . 2 . . . Weapon . | . . . . . . . . Parts Attached 70 | 6 1 7 6 29 4 4 13 Power 11 | 1 . 1 2 4 . 2 1 Engine 6 | 1 . 1 2 . . 1 1 Core 5 | . . . . 4 . 1 . Reactor . | . . . . . . . . Propulsion 25 | 2 . 3 . 13 2 1 4 Treads . | . . . . . . . . Leg 14 | . . . . 11 1 . 2 Wheel 8 | 2 . 3 . 1 . . 2 Hover . | . . . . . . . . Flight 3 | . . . . 1 1 1 . Utility 13 | 1 1 1 . 4 1 . 5 Device 5 | . . . . 2 . . 3 Storage 3 | 1 1 . . . . . 1 Processor 1 | . . 1 . . . . . Hackware . | . . . . . . . . Protection 4 | . . . . 2 1 . 1 Artifact . | . . . . . . . . Weapon 21 | 2 . 2 4 8 1 1 3 Energy Gun 4 | 2 . . 1 1 . . . Energy Cannon 5 | . . 1 . 2 . 1 1 Ballistic Gun 8 | . . 1 3 1 1 . 2 Ballistic Cannon 2 | . . . . 2 . . . Launcher 2 | . . . . 2 . . . Special Weapon . | . . . . . . . . Impact Weapon . | . . . . . . . . Slashing Weapon . | . . . . . . . . Piercing Weapon . | . . . . . . . . Special Melee Weapon . | . . . . . . . . Unidentified Prototypes . | . . . . . . . . Parts Lost 41 | . . 6 3 14 . 5 13 Power 6 | . . 1 1 3 . . 1 Propulsion 17 | . . 2 1 7 . 3 4 Utility 8 | . . . . 2 . 1 5 Weapon 10 | . . 3 1 2 . 1 3 Highest Loss Streak 13 | . . 4 3 9 . 3 13 To Critical Strikes 1 | . . 1 . . . . . Average Slot Usage (%) 69 | . 85 71 76 84 78 48 40 Engine 5 | . 14 10 10 2 . . 5 Core 2 | . . . . 6 7 3 . Leg 9 | . . . . 20 23 12 3 Wheel 12 | . 28 31 22 4 . . 8 Device 5 | . . . . 9 7 3 14 Storage 8 | . 14 11 11 9 7 3 3 Processor 6 | . . 2 11 9 7 4 . Protection 2 | . . . . 5 3 3 . Energy Gun 4 | . 28 9 8 1 . . . Energy Cannon 2 | . . 3 . 6 . . 1 Ballistic Gun 5 | . . 3 13 3 2 4 1 Ballistic Cannon 2 | . . . . 3 12 3 . Naked Turns 127 | . . . . . . 90 37 Heaviest Build 48 | 14 29 31 33 48 38 39 26 Greatest Support 44 | 20 20 44 24 42 34 24 30 Greatest Overweight (x) 13 | . 1 2 1 13 1 1 8 Average Overweight (x) . | . . . . . 1 . . Largest Inventory Capacity 15 | 8 15 15 15 15 15 15 5 Average Capacity 12 | 7 13 15 15 15 15 10 5 Most Carried 15 | . 1 3 14 15 12 12 5 Average Carried 8 | . . 1 10 13 11 8 3 Final Capacity 15 | 8 15 15 15 15 15 5 5 Final Carried 14 | . . 3 14 12 12 5 . Class Distribution -------------------- 59% | Mutant 40% | Scavenger-Mutant Dominant Class ---------------- Mutant | -10/Materials Mutant | -9/Materials Mutant | -9/Mines Scavenger-Mutant | -8/Materials Scavenger-Mutant | -7/Factory Scavenger-Mutant | -7/Waste Scavenger-Mutant | -7/Factory Resources | -11 -10 -9 -9 -8 -7 -7 -7 ----------- Run | Yrd Mat Mat Min Mat Fac Was Fac Matter Collected 823 | 180 . 120 100 387 . . 36 Remotely . | . . . . . . . . Salvage Created 935 | . . 319 60 488 . . 68 Parts 72 | . . 32 7 24 . . 9 Haulers Intercepted 1 | . . 1 . . . . . Recyclers Shooed 2 | . . . . 1 . . 1 Parts Field Recycled . | . . . . . . . . Retrieved Matter . | . . . . . . . . Parts Self-Destructed . | . . . . . . . . Prevented . | . . . . . . . . Kills | -11 -10 -9 -9 -8 -7 -7 -7 ------- Run | Yrd Mat Mat Min Mat Fac Was Fac Combat Hostiles Destroyed 32 | . . 10 4 15 . . 3 Melee 1 | . . . . . . . 1 Guns 12 | . . 4 4 4 . . . Cannons 11 | . . 4 . 5 . . 2 AOE 8 | . . 2 . 6 . . . Classes Destroyed 9 | . . 5 . 4 . . . Worker 2 | . . 1 . . . . 1 Hauler 1 | . . 1 . . . . . Operator 2 | . . 2 . . . . . Watcher 2 | . . 2 . . . . . Swarmer 19 | . . 10 4 2 . . 3 Grunt 7 | . . . . 7 . . . Sentry 1 | . . . . 1 . . . Specialist 4 | . . . . 4 . . . Hunter 1 | . . . . 1 . . . Best Kill Streak 9 | . . 9 4 4 . . 2 Combat Bots Only 4 | . . 4 4 4 . . 2 Max Kills in Single Turn 2 | . . 2 1 2 . . 1 Gunslinging . | . . . . . . . . Exploded 2 | . . 2 . 2 . . . Melee 1 | . . . . . . . 1 Uniques/NPCs Destroyed . | . . . . . . . . Combat | -11 -10 -9 -9 -8 -7 -7 -7 -------- Run | Yrd Mat Mat Min Mat Fac Was Fac Hostile Shots Fired 400 | . . 77 36 194 . 7 86 Missed 111 | . . 15 8 68 . 2 18 Damage Taken 4135 | 5 21 499 226 1725 . 255 1404 Core 1088 | . 7 78 50 239 . 255 459 Absorbed by Shields . | . . . . . . . . Core Remaining (%) 80 | 100 97 . 68 56 . . . Volleys Fired 154 | . . 52 18 61 . 7 16 Largest 2 | . . 2 2 2 . 2 2 Hottest 150 | . . 96 40 150 . 103 98 Shots Fired 226 | . . 61 34 99 . 13 19 Gun 127 | . . 51 34 29 . 7 6 Cannon 87 | . . 10 . 58 . 6 13 Launcher 12 | . . . . 12 . . . Special . | . . . . . . . . Kinetic 121 | . . 20 34 49 . 12 6 Thermal 52 | . . . . 38 . 1 13 Explosive 12 | . . . . 12 . . . Electromagnetic 41 | . . 41 . . . . . Robot Hit Streak 11 | . . 8 10 11 . 8 8 Robot Miss Streak 5 | . . 5 4 4 . 4 4 Penetration Max . | . . . . . . . . Secondary Targets 1 | . . . 1 . . . . Max Gunslinging Chain 1 | . . . 1 . . . . Shots Hit Robots 126 | . . 33 15 54 . 12 12 Core Hits 70 | . . 19 6 32 . 3 10 Critical Kills 1 | . . 1 . . . . . Critical Parts Destroyed . | . . . . . . . . Critical Strikes 1 | . . 1 . . . . . Destroy 1 | . . 1 . . . . . Melee Attacks . | . . . . . . . . Impact . | . . . . . . . . Slashing . | . . . . . . . . Piercing . | . . . . . . . . Sneak Attacks . | . . . . . . . . Combat Hostiles . | . . . . . . . . Follow-up Attacks . | . . . . . . . . Damage Inflicted 3207 | 11 . 615 116 1761 . 331 373 Guns 1063 | . . 324 116 343 . 198 82 Cannons 1172 | . . 161 . 703 . 133 175 Explosions 837 | . . 122 . 715 . . . Melee . | . . . . . . . . Ramming 135 | 11 . 8 . . . . 116 Kinetic 1144 | . . 108 116 532 . 306 82 Thermal 836 | . . 122 . 514 . 25 175 Explosive 715 | . . . . 715 . . . Electromagnetic 377 | . . 377 . . . . . Impact . | . . . . . . . . Slashing . | . . . . . . . . Piercing . | . . . . . . . . Highest Corruption 4 | . . . . 4 . . 4 Average Corruption 3 | . . . . 3 . . 4 Corruption Purged . | . . . . . . . . Corruption Blocked . | . . . . . . . . Effects 1 | . . . . 1 . . . Matter Fused 1 | . . . . 1 . . . Overload Shots . | . . . . . . . . Overflow Damage 8 | . . 8 . . . . . Projectiles 8 | . . 8 . . . . . Explosions . | . . . . . . . . Melee . | . . . . . . . . Knockbacks 5 | . . . . 4 . . 1 Impact 1 | . . . . . . . 1 Kinetic 4 | . . . . 4 . . . Secondary . | . . . . . . . . Self-Inflicted Damage 127 | 5 . 4 . 86 . . 32 Shots 4 | . . . . 4 . . . Rammed 26 | 1 . 1 . . . . 24 Targets Rammed 48 | 1 . 1 . . . . 46 Kicked 22 | . . . . . . . 22 Crushed . | . . . . . . . . Highest Temperature 510 | . . 77 . 510 . 6 75 Average Temperature 82 | . . 27 . 165 . 4 42 Received Heat Transfer 513 | . . . . 351 . . 162 Effects 4 | . . . . 4 . . . Energy Bleed 2 | . . . . 2 . . . Interference 2 | . . . . 2 . . . Siege Activations . | . . . . . . . . Robots Corrupted . | . . . . . . . . Combat Hostiles . | . . . . . . . . Parts Fried . | . . . . . . . . Impact Corruptions . | . . . . . . . . Robots Melted . | . . . . . . . . Combat Hostiles . | . . . . . . . . Parts Melted 6 | . . 2 . 3 . . 1 Heat Transferred 1397 | . . 250 . 851 . 37 259 Parts Sabotaged . | . . . . . . . . Parts Stolen . | . . . . . . . . Parts Stripped . | . . . . . . . . Power Chain Reactions 3 | . . 3 . . . . . Alert | -11 -10 -9 -9 -8 -7 -7 -7 ------- Run | Yrd Mat Mat Min Mat Fac Was Fac Peak Influence 354 | . . 354 228 325 71 30 46 Initial 138 | . . . 138 10 71 24 21 Average 100 | . . 198 195 93 71 15 22 Maximum Alert Level 1 | . . 1 1 1 . . . Low Security (%) 74 | 100 100 55 18 91 100 100 100 Level 1 25 | . . 44 81 8 . . . Level 2 . | . . . . . . . . Level 3 . | . . . . . . . . Level 4 . | . . . . . . . . Level 5 . | . . . . . . . . High Security . | . . . . . . . . Max Security . | . . . . . . . . Squads Dispatched 10 | . . 1 . 9 . . . Investigation 3 | . . 1 . 2 . . . Extermination . | . . . . . . . . Reinforcement 4 | . . . . 4 . . . Assault . | . . . . . . . . Garrison 3 | . . . . 3 . . . Intercept . | . . . . . . . . Searches Triggered . | . . . . . . . . Construction Impeded 2 | . . . . 2 . . . Haulers Reinforced . | . . . . . . . . Active Scanning Responses . | . . . . . . . . Cargo Convoy Interrupts . | . . . . . . . . Stealth | -11 -10 -9 -9 -8 -7 -7 -7 --------- Run | Yrd Mat Mat Min Mat Fac Was Fac Distress Signals 4 | . . 3 . 1 . . . Communications Jammed . | . . . . . . . . Distress Signals . | . . . . . . . . Times Spotted 71 | . 2 25 8 22 . 6 8 Peak Tracking Total 9 | . 2 9 4 6 . 6 4 Tactical Retreats 3 | . . 2 . . . 1 . Traps | -11 -10 -9 -9 -8 -7 -7 -7 ------- Run | Yrd Mat Mat Min Mat Fac Was Fac Traps Triggered 5 | . 1 . . 3 1 . . Indirectly . | . . . . . . . . Trap Hack Attempts . | . . . . . . . . Triggered . | . . . . . . . . Disarmed . | . . . . . . . . Reprogrammed . | . . . . . . . . Reused . | . . . . . . . . Traps Extracted . | . . . . . . . . Installed . | . . . . . . . . Triggered . | . . . . . . . . Machines | -11 -10 -9 -9 -8 -7 -7 -7 ---------- Run | Yrd Mat Mat Min Mat Fac Was Fac Machines Disabled 3 | . . . . 3 . . . Max in Single Turn 2 | . . . . 2 . . . Machines Repaired . | . . . . . . . . Machines Dismantled . | . . . . . . . . Machines Sabotaged . | . . . . . . . . Overloaded Fab Kills . | . . . . . . . . Hacking | -11 -10 -9 -9 -8 -7 -7 -7 --------- Run | Yrd Mat Mat Min Mat Fac Was Fac Machines Accessed 2 | . . . . 2 . . . Terminals 2 | . . . . 2 . . . Fabricators . | . . . . . . . . Repair Stations . | . . . . . . . . Recycling Units . | . . . . . . . . Scanalyzers . | . . . . . . . . Garrison Access . | . . . . . . . . Total Hacks 6 | . . . . 6 . . . Successful 3 | . . . . 3 . . . Failed 3 | . . . . 3 . . . Catastrophic 1 | . . . . 1 . . . Database Lockouts . | . . . . . . . . Manual 4 | . . . . 4 . . . Terminals 6 | . . . . 6 . . . Fabricators . | . . . . . . . . Repair Stations . | . . . . . . . . Recycling Units . | . . . . . . . . Scanalyzers . | . . . . . . . . Garrison Access . | . . . . . . . . Terminal Hacks 3 | . . . . 3 . . . Record 2 | . . . . 2 . . . Unreport Threat 1 | . . . . 1 . . . Fabricator Hacks . | . . . . . . . . Repair Station Hacks . | . . . . . . . . Recycling Unit Hacks . | . . . . . . . . Scanalyzer . | . . . . . . . . Garrison Access Hacks . | . . . . . . . . Unauthorized Hacks . | . . . . . . . . Terminals . | . . . . . . . . Fabricators . | . . . . . . . . Repair Stations . | . . . . . . . . Recycling Units . | . . . . . . . . Scanalyzers . | . . . . . . . . Garrison Access . | . . . . . . . . Data Cores Recovered 1 | . . 1 . . . . . Used . | . . . . . . . . Hacking Detections 1 | . . . . 1 . . . Full Trace Events 1 | . . . . 1 . . . Feedback Events . | . . . . . . . . Feedback Blocked . | . . . . . . . . Robot Schematics Acquired . | . . . . . . . . Robots Built . | . . . . . . . . Authchips . | . . . . . . . . Time . | . . . . . . . . Total Robot Build Rating . | . . . . . . . . Part Schematics Acquired . | . . . . . . . . Parts Built . | . . . . . . . . Authchips . | . . . . . . . . Time . | . . . . . . . . Total Part Build Rating . | . . . . . . . . Parts Repaired . | . . . . . . . . Time . | . . . . . . . . Parts Recycled . | . . . . . . . . Recycled Matter . | . . . . . . . . Retrieved Matter . | . . . . . . . . Retrieved Components . | . . . . . . . . Parts Scanalyzed . | . . . . . . . . Part Schematics Acquired . | . . . . . . . . Parts Damaged . | . . . . . . . . Bothacking | -11 -10 -9 -9 -8 -7 -7 -7 ------------ Run | Yrd Mat Mat Min Mat Fac Was Fac Used RIF Installer . | . . . . . . . . Robots Hacked . | . . . . . . . . Non-combat . | . . . . . . . . Combat . | . . . . . . . . Robot Hacks Applied . | . . . . . . . . Relay Couplers Released . | . . . . . . . . Fabnet Peak Effective % . | . . . . . . . . Robots Rewired . | . . . . . . . . Allies Hacked . | . . . . . . . . Hacks Repelled . | . . . . . . . . Allies | -11 -10 -9 -9 -8 -7 -7 -7 -------- Run | Yrd Mat Mat Min Mat Fac Was Fac Total Allies 3 | . . . 3 . . . . Largest Group 3 | . . . 3 3 . . . Highest-Rated Group 40 | . . . 40 40 . . . Highest-Rated Ally 16 | . . . 16 16 . . . Total Orders . | . . . . . . . . Ally Attacks 31 | . . . . 31 . . . Total Damage 304 | . . . . 304 . . . Kills 4 | . . . . 4 . . . Allies Corrupted . | . . . . . . . . Allies Melted . | . . . . . . . . Intel | -11 -10 -9 -9 -8 -7 -7 -7 ------- Run | Yrd Mat Mat Min Mat Fac Was Fac Robot Analysis Total . | . . . . . . . . Derelict Logs Recovered 1 | . . . 1 . . . . Drone Launches . | . . . . . . . . Drone Recoveries . | . . . . . . . . Exploration | -11 -10 -9 -9 -8 -7 -7 -7 ------------- Run | Yrd Mat Mat Min Mat Fac Was Fac Turns Passed 2074 | 38 98 224 465 586 93 267 303 Spaces Moved 1396 | 36 105 108 366 250 48 231 252 Core 258 | 1 . . . 1 . 150 106 Treads . | . . . . . . . . Legs 294 | . . . . 154 48 41 51 Wheels 804 | 35 105 108 366 95 . . 95 Hover . | . . . . . . . . Flight 40 | . . . . . . 40 . Fastest Speed 40 | 50 80 85 90 105 183 40 50 Average Speed 101 | 79 91 89 104 146 183 72 75 Slowest Speed 700 | 80 95 110 105 700 183 180 450 Overloaded Moves . | . . . . . . . . Propulsion Burnouts . | . . . . . . . . Robots Hopped 4 | . . . . . . 4 . Cave-ins Triggered . | . . . . . . . . Exploration Rate (%) 28 | 4 36 11 65 26 2 81 5 Regions Visited 7 Branch Regions 1 Pre-discovered Areas . | . . . . . . . . Known Exits Taken . | . . . . . . . . Unknown Exits Taken 5 | 1 1 1 1 1 . . . Scrap Searched 1 | . . . 1 . . . . Spaces Dug . | . . . . . . . . Terrain Destroyed 109 | . . 9 . 100 . . . Melee . | . . . . . . . . Projectile 15 | . . . . 15 . . . AOE 94 | . . 9 . 85 . . . Terrain Rammed . | . . . . . . . . Walls Destroyed . | . . . . . . . . Machines Disabled . | . . . . . . . . Actions | -11 -10 -9 -9 -8 -7 -7 -7 --------- Run | Yrd Mat Mat Min Mat Fac Was Fac Total 1811 | 42 107 176 417 372 53 314 330 Wait 98 | . . 2 18 4 . 71 3 Move 1384 | 35 104 107 365 249 48 224 252 Hop 2 | . . . . . . 2 . Pick Up 30 | . . 5 10 14 . 1 . Fast Attach 39 | 6 1 7 2 9 3 2 9 Attach 21 | . . . 1 13 1 2 4 Detach 5 | . 1 . . 2 1 1 . Swap 10 | . . . 3 7 . . . Drop 20 | . 1 2 . 13 . 4 . Fire 154 | . . 52 18 61 . 7 16 Melee . | . . . . . . . . Ram 26 | 1 . 1 . . . . 24 Kick 22 | . . . . . . . 22 Crush . | . . . . . . . . Escape Stasis . | . . . . . . . . Rewire . | . . . . . . . . Trap . | . . . . . . . . Miscellaneous . | . . . . . . . . Route ------- -11/Scrapyard -10/Materials -9/Materials -9/Mines -8/Materials -7/Factory -7/Waste -7/Factory (discovered 1 exit: [*Fac]) History --------- Turn | Location | Event 2 | -11/Scrapyard | Met Revision 17 27 | -11/Scrapyard | Discovered new exit (range 14) 39 | -11/Scrapyard | Entered Materials 94 | -10/Materials | Discovered new exit (range 15) 137 | -10/Materials | Entered another Materials area 137 | -9/Materials | Evolved 2 slots: Propulsion x2 315 | -9/Materials | Build established: Mutant 340 | -9/Materials | Lost 4 parts (1p1n2w) 347 | -9/Materials | Discovered new exit (range 18) 361 | -9/Materials | Entered Mines 421 | -9/Mines | Lost 3 parts (1p1n1w) 436 | -9/Mines | Joined a pair of Derelicts in attacking an 0b10 outpost 653 | -9/Mines | Learned Materials stockpile data 774 | -9/Mines | Received a Rocket Launcher from a helpful Derelict 792 | -9/Mines | Assisted by bots powering up and referring to "LRC-V3" 807 | -9/Mines | Discovered new exit (range 16) 826 | -9/Mines | Entered Materials 826 | -8/Materials | Accompanied by 3 allies 826 | -8/Materials | Evolved 2 slots: Utility x2 1115 | -8/Materials | Garrison activated, responded to threat 1148 | -8/Materials | Lost 3 parts (1p1n1u) 1322 | -8/Materials | Lost 9 parts (1p5n1u2w) 1357 | -8/Materials | Discovered new exit (range 16) 1412 | -8/Materials | Entered Factory 1412 | -7/Factory | Evolved 2 slots: Propulsion x2 1505 | -7/Factory | Sucked down chute 1505 | -7/Factory | Entered Waste 1516 | -7/Waste | Spotted C-40 Crusher 1605 | -7/Waste | Spotted C-40 Crusher 1606 | -7/Waste | Spotted C-40 Crusher 1630 | -7/Waste | Crushed by Compactor (1 part destroyed, 1 dropped) 1641 | -7/Waste | Crushed by Compactor (1 part destroyed, 1 dropped) 1641 | -7/Waste | Spotted C-40 Crusher 1649 | -7/Waste | Crushed by Compactor (1 part destroyed, 2 dropped) 1680 | -7/Waste | Lost 3 parts (2n1u) 1680 | -7/Waste | Crushed by Compactor (1 part destroyed, 2 dropped) 1682 | -7/Waste | Crushed by Compactor (1 part destroyed) 1728 | -7/Waste | Spotted C-40 Crusher 1742 | -7/Waste | Spotted C-40 Crusher 1762 | -7/Waste | Discovered new exit (range 11) 1772 | -7/Waste | Entered Factory 1790 | -7/Factory | Discovered new exit (range 11) 2001 | -7/Factory | Core integrity fell below 50% 2072 | -7/Factory | Core integrity fell below 20% 2075 | -7/Factory | Destroyed by L-41 Fighter with Axe Last Messages --------------- 02034_ VSS Leg destroyed. 02035_ Slammed into L-41 Fighter. 02058_ Acquired Autogun. 02059_ K-01 Serf collects debris. 02060_ Lgt. Ion Engine destroyed. 02061_ Hvy. Armor Plating destroyed. 02061_ K-01 Serf collects debris. 02067_ Hvy. Particle Cannon destroyed. 02069_ K-01 Serf collects debris. 02069_ K-01 Serf cleans the Nuclear Reactor. 02070_ Autogun destroyed. 02070_ Slammed into L-41 Fighter. 02070_ Microactuators destroyed. 02070_ System corrupted by crushing effect (+4). 02071_ Slammed into L-41 Fighter. 02072_ K-01 Serf collects debris. 02072_ Slammed into L-41 Fighter. 02072_ K-01 Serf cleans the Nuclear Reactor. 02073_ Slammed into L-41 Fighter. 02075_ K-01 Serf cleans the Nuclear Reactor. Map ----- +----------------------------------------------------+ | ?????????????????????????????????????????????????? | | ?????????????????????????????????????????????????? | | ?????????????????????????????????????????????????? | | ?????????????????????????????????????????????????? | | ?????????????????????????????????????????????????? | | ?????????????????????????????????????????????????? | | ?????????????????????????????????????????????????? | | ?????????????????????????????? ?????????????????? | | ????????????????????????????? #????????????????? | | ?????????????? ????????????? #????????????????? | | ???????????? ??????????? #????????????????? | | ??????????? ??????????? #????????????????? | | ??????????? ????????? #??? ????????????? | | ??????????? ????????? #? ????????????? | | ?????????? ######### # ?????????????? | | ??????????? + ???????????????? | | ????????????# #????????????????? | | ????????????# #????????????????? | | ????????????# ?????????????????? | | ????????????? ?? ??????????????????? | | ???????????????????# ####g#####??????????????? | | ???????????????????# k # ??????????????? | | ???????????????????# % # #?????????????? | | ???????????????????# # """ """ #?????????????? | | ???????????????????# l#k""" """ #?????????????? | | ##########?????????+ m@ """ """ #?????????????? | | #?????????# # g k #?????????????? | | #?????????# # g%! #?????????????? | | #?????????# # #?????????????? | | #?????????# ###########?????????????? | | ! #????#+#??# #???????????????????????? | | #????# #??# #???????????????????????? | | #????# #??# #???????????????????????? | | #????# #??# #???????????????????????? | | #######+##????# #??# #???????????????????????? | | ####### #### ###+###?????????????????? | | ####### #?????????????? | | ??????# #?????????????? | | ??????# #?????????????? | | ############# #?????????????? | | # ??????????????? | | # ####+####+??????????????? | | # #???????????????????????? | | # #???????????????????????? | | # #???????????????????????? | | + #???????????????????????? | | # #???????????????????????? | | # #???????????????????????? | | # ###+####???????????????????????? | | # #??????????????????????????????? | +----------------------------------------------------+ Best States ------------- Heat Dissipation 61 Energy Generation 18 Energy Capacity 265 Matter Stores 300 Matter Capacity 400 Sight Range 18 Robot Scan Range 14 Terrain Scan Density 10 Armor Coverage 600 Melee Speed Boost 50 Evasion (%) 62 Item Schematics ----------------- None Robot Schematics ------------------ None Fabricated ------------ Nothing Alien Tech Used ----------------- None Achievements -------------- None Challenges ------------ None Game ------ Seed LargeSpikedSabre Manual? 0 Play Time 00:33:53 Cumulative 70.8 hours Start 2024.04.08 @ 19:05:35 End 2024.04.08 @ 20:27:57 Sessions 1 Manual Loads 0 Difficulty Rogue Special Mode None Game No. 155 Rogue 155 Adventurer 0 Explorer 0 Win Type - Total 0 Types 0/0/0/0/0/0/0/0/0 Lore% 28 Gallery% 42 Achievement% 31 Wizard Run 0 Options --------- Layout 0 ASCII 0 Keyboard 1 Movement Numpad Keybinds 0 Fullscreen 1 Font 24/Terminus Map View 76x50 Zoom Use 0% Tactical HUD 1 Map Filters NONE Filters NONE Steam 1 RUN: 9d569006-d1bb-4614-b955-eabf196c58bf